bitfinex-derivatives/quotes_ETHF0:USTF0_20250926
["timestamp","ask_amount","ask_price","bid_price","bid_amount"]
[1758890426955,0.31,3943.3,3943.1,0.45616]
[1758890427148,1.228,3943.2,3943.1,0.45616]
[1758890427348,0.31,3943.3,3942.6,3.2078]
[1758890427653,0.76615,3943.3,3942.6,3.2078]
[1758890427848,3.2078,3943.2,3942.6,3.2078]
[1758890428544,4.4358,3943.2,3943.0,0.45617]
[1758890428745,1.228,3943.1,3943.0,0.45617]
[1758890429050,1.538,3943.1,3943.0,0.45617]
[1758890429257,1.538,3943.1,3942.6,4.4412]
[1758890429450,0.31,3943.0,3942.9,0.45619]
[1758890430357,3.2078,3943.2,3943.1,0.45617]
[1758890430548,0.45606,3944.1,3943.1,0.45617]
[1758890430549,1.228,3944.2,3943.8,0.45609]
[1758890430748,3.2078,3944.3,3944.2,0.45604]
[1758890430960,3.2078,3944.3,3944.2,1.68944]
[1758890432051,1.228,3944.2,3943.4,3.2078]
[1758890432257,1.228,3943.9,3943.7,0.4561]
[1758890432456,3.66383,3944.3,3943.5,1.5424]
[1758890432647,3.66383,3944.3,3944.1,0.45605]
[1758890432648,3.2078,3944.3,3944.1,0.45605]
[1758890432855,3.2078,3944.3,3944.2,1.2334]
[1758890433052,0.309,3944.4,3943.8,3.2078]
[1758890433256,0.45607,3944.0,3943.8,0.45609]
[1758890433451,0.309,3943.9,3943.0,3.5168]
[1758890433659,0.309,3943.9,3943.5,0.45611]
[1758890433660,0.45611,3943.7,3943.5,0.45611]
[1758890433957,0.309,3943.6,3943.0,0.45618]
[1758890434253,1.228,3943.0,3942.8,0.45619]
[1758890434457,1.228,3943.3,3943.2,0.45615]
[1758890434656,1.537,3943.3,3943.2,0.45615]
[1758890434954,1.228,3943.1,3943.0,0.45618]
[1758890435255,0.45616,3943.2,3942.9,0.45619]
[1758890435256,0.45617,3943.2,3942.9,0.45619]
[1758890435454,0.45617,3943.2,3943.0,0.45618]
[1758890435654,3.2078,3943.4,3943.0,0.45618]
[1758890435655,1.537,3943.1,3943.0,0.45618]
[1758890436752,1.228,3943.1,3943.0,0.45618]
[1758890436948,1.99317,3943.1,3942.6,0.309]
[1758890437162,0.45619,3943.0,3942.8,0.4562]
[1758890437353,1.228,3942.9,3942.7,0.45621]
[1758890437846,3.2078,3943.8,3943.7,0.4561]
[1758890438455,1.2723,3943.8,3943.7,0.4561]
[1758890438655,0.45607,3944.0,3943.4,1.14034]
[1758890438958,0.309,3944.1,3943.4,1.14034]
[1758890438959,1.2723,3944.1,3944.0,0.45606]
[1758890439161,1.5813,3944.1,3944.0,0.45606]
[1758890439861,1.2723,3943.9,3943.8,0.45608]
[1758890440057,1.2723,3943.6,3942.9,3.2078]
[1758890440361,1.2723,3943.9,3943.8,0.45609]
[1758890440555,1.7584,3944.4,3943.7,3.2078]
[1758890440761,1.2723,3944.2,3944.1,0.45604]
[1758890441564,1.5813,3944.2,3944.1,0.45604]
[1758890441952,1.5813,3944.2,3943.7,3.2078]
[1758890441953,6.5813,3944.2,3943.9,0.45607]
[1758890442161,1.2723,3943.8,3943.7,3.6639]
[1758890442351,0.45613,3943.4,3943.2,0.45615]
[1758890442551,1.5813,3943.3,3943.2,0.45615]
[1758890442857,1.2723,3943.2,3943.1,3.66396]
[1758890443153,0.45619,3942.9,3942.2,3.2078]
[1758890443356,0.309,3942.8,3942.2,3.2078]
[1758890443759,1.5813,3942.8,3942.2,3.2078]
[1758890443959,0.309,3942.8,3942.2,3.2078]
[1758890444159,1.2723,3942.4,3942.3,0.45626]
[1758890444362,1.2723,3942.3,3941.3,3.2078]
[1758890444555,1.2723,3941.9,3941.8,0.45632]
[1758890444757,4.4801,3942.4,3941.7,3.2078]
[1758890444959,0.309,3942.3,3942.2,0.45627]
[1758890445162,0.309,3942.3,3942.1,0.45627]
[1758890445358,1.2723,3942.9,3942.8,0.4562]
[1758890445556,0.309,3943.2,3942.6,3.2078]
[1758890445757,0.309,3943.2,3943.0,0.45617]
[1758890446055,4.4801,3943.3,3943.2,0.45615]
[1758890446253,4.4801,3943.3,3943.1,0.45616]
[1758890446254,4.7891,3943.3,3943.1,0.45616]
[1758890446462,0.45621,3942.7,3942.0,0.309]
[1758890446658,0.309,3942.6,3942.0,0.309]
[1758890446863,1.2723,3942.5,3942.4,0.45624]
[1758890447064,0.76523,3942.6,3942.0,0.309]
[1758890447262,0.76523,3942.6,3942.4,0.45625]
[1758890447457,0.45624,3942.5,3942.3,0.45625]
[1758890447766,0.45624,3942.5,3941.9,0.4563]
[1758890447767,0.4856,3942.5,3941.9,0.4563]
[1758890447967,1.2723,3942.0,3941.8,0.45631]
[1758890448162,1.5813,3941.9,3941.8,0.45631]
[1758890448372,1.2723,3941.7,3941.4,3.2078]
[1758890448664,1.2723,3941.5,3941.4,0.45636]
[1758890448862,1.2723,3941.5,3941.0,3.2078]
[1758890449066,1.2723,3941.5,3940.9,0.45642]
[1758890449067,0.45641,3941.1,3940.9,0.45642]
[1758890449261,0.309,3941.0,3940.8,0.45643]
[1758890449564,0.45644,3940.8,3940.6,3.2078]
[1758890449869,1.2723,3940.7,3940.6,3.2078]
[1758890450165,1.2723,3940.7,3939.9,0.45654]
[1758890450166,1.72879,3940.4,3939.9,0.45654]
[1758890450463,8.2078,3940.9,3939.9,0.45654]
[1758890450464,0.308,3940.3,3940.2,1.70261]
[1758890450662,3.2078,3941.3,3940.5,0.45647]
[1758890450663,1.7579,3941.0,3940.5,0.45647]
[1758890450865,1.2723,3940.9,3940.8,0.45643]
[1758890451060,4.4801,3941.8,3940.9,1.14107]
[1758890451256,0.308,3941.6,3940.8,3.2078]
[1758890451468,0.308,3941.6,3941.4,0.45636]
[1758890451669,1.2723,3941.5,3941.4,0.45636]
[1758890451964,1.2723,3941.4,3941.3,0.45637]
[1758890452163,4.4801,3941.4,3941.1,0.45639]
[1758890452363,1.5803,3941.3,3941.2,0.45639]
[1758890452567,0.308,3941.3,3941.1,0.4564]
[1758890452864,5.33709365,3941.2,3940.1,0.6706755]
[1758890453070,1.72874,3940.8,3940.0,3.2078]
[1758890453255,0.308,3940.7,3940.5,0.45647]
[1758890453657,1.2723,3940.1,3939.9,0.45654]
[1758890453864,1.2723,3940.1,3939.5,3.2078]
[1758890453865,0.308,3940.1,3939.5,3.2078]
[1758890454061,1.2723,3940.0,3939.5,3.2078]
[1758890454265,1.2723,3939.9,3939.8,0.45655]
[1758890454466,1.5803,3939.9,3939.8,0.45655]
[1758890454665,1.2723,3940.2,3940.1,0.45651]
[1758890454865,1.5803,3940.2,3940.1,0.45651]
[1758890455066,1.2723,3940.1,3939.9,0.45653]
[1758890455266,0.308,3940.2,3939.5,4.4539]
[1758890455267,3.2078,3940.3,3940.2,0.4565]
[1758890455467,1.2723,3940.6,3940.5,0.45647]
[1758890455665,3.2078,3940.9,3940.8,0.45643]
[1758890455872,3.2078,3940.9,3940.1,1.2461]
[1758890455873,3.5158,3940.9,3940.6,0.45645]
[1758890456065,3.97222,3940.9,3940.6,0.45645]
[1758890456363,1.2723,3940.8,3939.9,3.2078]
[1758890456568,3.5158,3940.9,3940.2,1.14126]
[1758890456764,0.308,3940.8,3940.7,0.45644]
[1758890456969,0.308,3940.8,3940.7,1.70254]
[1758890457571,0.308,3940.8,3940.6,0.45645]
[1758890457773,3.2078,3940.9,3940.8,1.70253]
[1758890457975,3.2078,3940.9,3940.1,1.44929]
[1758890457976,1.2723,3940.8,3940.6,0.45645]
[1758890458175,4.7881,3940.9,3940.4,0.45647]
[1758890458372,1.2723,3940.8,3940.7,0.45643]
[1758890458570,1.2723,3940.8,3940.0,3.2078]
[1758890458571,3.2078,3941.3,3941.2,0.45639]
[1758890458971,0.4856,3942.0,3941.6,0.45634]
[1758890458972,3.2078,3941.7,3941.6,0.45634]
[1758890459273,4.4801,3941.7,3941.6,0.45634]
[1758890459476,4.7881,3941.7,3941.6,0.45634]
[1758890459874,4.7881,3941.7,3941.5,0.45635]
[1758890460076,1.2723,3941.6,3941.5,0.45635]
[1758890460384,3.5158,3941.7,3940.9,3.2078]
[1758890460385,1.2723,3941.1,3940.9,3.2078]
[1758890460678,1.5803,3941.0,3940.9,3.2078]
[1758890460871,0.308,3941.0,3940.9,3.2078]
[1758890461177,3.66413,3941.7,3941.5,0.45635]
[1758890461376,1.2723,3941.3,3940.9,3.2078]
[1758890461578,0.308,3941.2,3940.9,3.2078]
[1758890461873,0.4564,3941.1,3940.9,3.66422]
[1758890462078,1.5803,3941.2,3941.1,0.4564]
[1758890462468,3.2078,3942.1,3942.0,0.4563]
[1758890462670,3.2078,3942.1,3942.0,1.7024]
[1758890462870,1.2723,3942.9,3942.8,0.4562]
[1758890463077,1.2723,3942.9,3942.5,0.45624]
[1758890463273,1.2723,3942.9,3941.8,1.2461]
[1758890463274,1.2723,3942.3,3941.6,0.308]
[1758890463470,0.308,3942.4,3941.9,3.2078]
[1758890463675,1.2723,3942.3,3942.2,0.45627]
[1758890464181,1.2723,3942.3,3941.6,1.44884]
[1758890464182,1.2723,3942.2,3941.6,0.308]
[1758890464381,0.308,3942.4,3941.1,3.5158]
[1758890464382,1.2723,3941.7,3941.1,3.5158]
[1758890464679,0.45635,3941.6,3941.4,0.45637]
[1758890464980,1.267,3941.4,3941.1,3.5158]
[1758890465176,1.267,3941.4,3940.6,1.14113]
[1758890465177,0.45643,3940.9,3940.6,3.2078]
[1758890465381,0.45643,3940.9,3940.7,0.45644]
[1758890465382,1.267,3940.8,3940.7,0.45644]
[1758890465676,1.575,3940.8,3940.6,3.2078]
[1758890465978,1.267,3940.7,3940.6,3.66425]
[1758890466183,1.72346,3940.7,3940.5,0.45647]
[1758890466370,1.267,3940.7,3940.2,3.2078]
[1758890466676,4.58341607,3943.0,3940.2,3.2078]
[1758890466677,3.2078,3941.8,3941.7,0.45633]
[1758890466977,4.7828,3941.8,3941.7,0.45633]
[1758890467177,4.4748,3941.8,3941.7,0.45633]
[1758890467484,0.45633,3941.7,3941.0,1.2297]
[1758890467674,1.267,3941.6,3941.0,1.2297]
[1758890467975,1.267,3941.4,3940.9,0.45642]
[1758890468175,0.45638,3941.3,3941.0,0.4564]
[1758890468375,0.45638,3941.3,3940.6,3.2078]
[1758890468376,0.45643,3940.9,3940.6,3.2078]
[1758890468582,0.45648,3940.4,3940.2,3.2078]
[1758890468770,0.45648,3940.4,3939.4,1.14149]
[1758890468771,0.308,3940.4,3939.8,3.2078]
[1758890468977,0.45652,3940.1,3939.8,3.2078]
[1758890469274,0.308,3940.4,3939.3,3.2078]
[1758890469275,3.5158,3940.0,3939.3,3.2078]
[1758890469585,1.2247,3939.5,3939.3,0.4566]
[1758890469774,3.2078,3939.5,3939.3,0.4566]
[1758890469975,1.2247,3939.5,3939.3,0.4566]
[1758890470276,3.7041,3940.0,3939.8,0.45655]
[1758890470476,1.5317,3939.9,3939.0,1.1656]
[1758890470671,3.2078,3940.4,3940.3,0.45649]
[1758890470877,1.2247,3940.8,3940.7,0.45644]
[1758890471072,1.2247,3940.6,3939.7,3.2078]
[1758890471274,1.68118,3940.4,3939.5,0.307]
[1758890471479,3.2078,3940.1,3939.9,0.45654]
[1758890471677,1.68124,3939.9,3939.3,3.2078]
[1758890471986,0.307,3940.0,3939.8,0.45654]
[1758890472375,0.0253,3940.3,3940.2,0.4565]
[1758890472579,0.0253,3940.3,3940.2,1.6221]
[1758890472777,0.4963,3942.0,3941.0,1.62201]
[1758890472778,3.2078,3941.1,3941.0,1.62201]
[1758890473092,3.2078,3941.1,3940.4,0.45647]
[1758890473093,1.721,3941.0,3940.4,0.45647]
[1758890473378,1.2247,3940.7,3939.9,1.14135]
[1758890473578,3.2078,3940.5,3939.8,4.3734]
[1758890473887,1.31457625,3940.4,3940.3,0.45649]
[1758890474082,0.45654,3940.0,3939.7,1.1656]
[1758890474385,1.2247,3939.2,3939.1,0.45663]
[1758890474575,1.2247,3939.2,3939.0,3.2078]
[1758890474576,1.2247,3939.2,3939.0,3.66444]
[1758890474771,1.2247,3939.2,3939.0,3.2078]
[1758890474976,1.63751,3940.5,3939.2,1.1656]
[1758890474977,3.2078,3940.5,3939.2,1.1656]
[1758890475172,1.81684607,3941.7,3939.1,5.307]
[1758890475173,3.2078,3942.5,3942.4,0.45625]
[1758890475380,0.08990461,3942.5,3942.4,1.62185]
[1758890475572,4.4325,3944.4,3942.8,11.40501]
[1758890475778,5.9468382,3945.5,3944.3,4.3734]
[1758890475779,3.2078,3945.5,3944.3,4.3734]
[1758890475982,1.2247,3945.7,3943.8,1.62502]
[1758890475983,1.2247,3945.7,3945.5,0.45588]
[1758890476188,1.2247,3947.3,3945.7,11.39661]
[1758890476480,3.2078,3946.3,3945.4,3.2078]
[1758890476681,1.2247,3946.4,3945.1,1.1656]
[1758890476682,3.2078,3945.9,3945.2,0.307]
[1758890476878,3.2078,3946.3,3945.8,0.45585]
[1758890477081,1.2247,3946.2,3945.3,40.8]
[1758890477279,3.2078,3945.9,3945.0,3.2078]
[1758890477488,3.2078,3945.1,3944.2,1.1656]
[1758890477791,0.307,3946.0,3944.9,3.2078]
[1758890477981,0.307,3946.0,3944.7,1.4726]
[1758890477982,3.2078,3945.5,3944.7,1.4726]
[1758890478186,3.2078,3945.5,3944.9,0.45596]
[1758890478488,3.2078,3945.5,3944.7,1.4726]
[1758890478679,3.2078,3945.5,3945.3,0.45591]
[1758890478881,0.45591,3945.4,3944.7,1.1656]
[1758890479078,3.2078,3945.1,3944.9,0.45596]
[1758890479279,3.97069,3945.5,3944.9,0.45596]
[1758890479483,3.5148,3945.5,3944.9,0.45596]
[1758890479679,3.2078,3945.5,3944.6,1.1656]
[1758890479882,0.4559,3945.4,3944.6,1.1656]
[1758890480081,3.2078,3945.1,3944.8,0.45597]
[1758890480296,4.4325,3945.1,3944.4,0.45602]
[1758890480478,4.4325,3945.1,3944.1,3.2078]
[1758890480479,1.2247,3944.8,3944.1,3.2078]
[1758890480678,1.2247,3945.0,3944.1,3.2078]
[1758890480985,3.2078,3945.1,3944.1,3.2078]
[1758890481186,1.2247,3945.3,3945.0,0.45594]
[1758890481384,3.2078,3945.5,3945.4,0.4559]
[1758890482384,0.307,3945.6,3945.4,0.4559]
[1758890482385,3.2078,3945.9,3945.8,1.62146]
[1758890483189,3.2078,3945.9,3945.8,0.45586]
[1758890483392,1.2247,3946.5,3946.4,0.45579]
[1758890483586,4.4325,3946.6,3945.8,0.45585]
[1758890483892,0.4558,3946.4,3945.4,1.4726]
[1758890484090,0.7628,3946.4,3945.4,1.4726]
[1758890484290,3.2078,3946.2,3945.2,3.2078]
[1758890484493,1.5317,3946.1,3946.0,0.45583]
[1758890484890,1.5317,3946.1,3945.8,0.45585]
[1758890485194,1.2247,3946.5,3946.1,0.45581]
[1758890485495,0.307,3946.4,3946.2,0.45581]
[1758890485793,0.0253,3946.8,3946.7,0.45575]
[1758890486092,3.2078,3947.6,3947.5,0.45566]
[1758890486290,1.2247,3947.9,3947.8,0.45563]
[1758890487086,1.2247,3948.1,3947.2,1.1656]
[1758890487289,12.52333,3949.9,3948.5,0.45554]
[1758890487290,1.2247,3948.8,3948.5,0.45554]
[1758890487486,1.2247,3948.8,3948.3,0.45556]
[1758890487487,0.307,3948.8,3948.3,0.45556]
[1758890487682,3.2078,3948.6,3947.7,3.2078]
[1758890487896,3.66339,3948.2,3947.4,0.45567]
[1758890488081,3.66339,3948.2,3947.3,3.2078]
[1758890488082,3.2078,3948.2,3947.3,3.2078]
[1758890488282,0.45563,3947.8,3947.3,3.2078]
[1758890488487,0.45561,3948.0,3947.3,0.307]
[1758890488692,1.2247,3947.6,3946.9,3.2078]
[1758890488993,1.2247,3947.6,3946.4,1.1656]
[1758890488994,3.2078,3947.3,3946.4,4.3734]
[1758890489195,0.45572,3947.1,3946.7,0.45575]
[1758890489393,3.2078,3947.3,3946.9,0.45572]
[1758890489588,1.2247,3947.2,3946.5,40.8]
[1758890489792,1.2247,3946.7,3946.0,3.2078]
[1758890489986,0.307,3947.0,3946.6,0.45576]
[1758890490293,0.0253,3947.3,3947.1,0.4557]
[1758890490589,1.557,3947.3,3947.1,0.4557]
[1758890490794,0.3323,3947.3,3946.5,0.45577]
[1758890491097,1.2247,3946.9,3946.7,0.45575]
[1758890491492,4.4325,3947.2,3946.8,0.45574]
[1758890491689,0.45574,3946.9,3946.0,3.2078]
[1758890491893,3.2078,3947.2,3945.6,1.1656]
[1758890491894,1.2247,3946.4,3945.6,3.2078]
[1758890492189,3.2078,3946.5,3945.2,3.2078]
[1758890492190,1.2247,3946.5,3945.2,3.2078]
[1758890492392,0.307,3946.4,3946.0,0.45583]
[1758890492693,1.2247,3946.1,3945.8,0.45585]
[1758890492891,3.7041,3946.6,3945.7,1.13968]
[1758890493191,1.2247,3946.4,3946.2,0.45581]
[1758890493393,1.2247,3946.3,3946.2,0.45581]
[1758890493790,1.2247,3946.3,3945.6,3.2078]
[1758890493993,3.7041,3946.6,3945.7,1.13968]
[1758890494192,3.7041,3946.6,3946.4,0.45578]
[1758890494794,3.2078,3946.6,3946.4,0.45578]
[1758890494998,4.4325,3946.6,3946.4,0.45578]
[1758890495292,0.307,3947.0,3946.7,0.45575]
[1758890495493,1.2247,3946.7,3945.6,3.2078]
[1758890495695,0.95212,3946.2,3945.6,3.2078]
[1758890495996,0.306,3946.1,3945.6,3.2078]
[1758890496200,0.45584,3946.0,3945.7,0.45586]
[1758890496402,1.2247,3945.7,3945.6,3.2078]
[1758890496900,1.2247,3946.1,3946.0,0.45583]
[1758890497093,1.5307,3946.1,3946.0,0.45583]
[1758890497400,1.2247,3946.0,3945.4,0.4559]
[1758890497604,0.45588,3945.6,3945.2,3.2078]
[1758890497802,0.45591,3945.4,3945.2,3.2078]
[1758890497998,1.2247,3945.3,3945.2,3.2078]
[1758890498900,4.3535,3945.9,3945.7,0.45587]
[1758890499103,7.95635836,3946.4,3946.0,0.45583]
[1758890499301,0.45582,3946.2,3946.0,0.45583]
[1758890499601,0.45582,3946.2,3945.2,3.2078]
[1758890499602,1.1457,3946.2,3945.6,0.45587]
[1758890499902,0.45586,3945.8,3945.2,3.2078]
[1758890500092,0.306,3945.8,3945.2,3.2078]
[1758890500298,1.1457,3945.7,3945.6,0.45588]
[1758890501105,1.1457,3945.4,3945.3,0.45591]
[1758890501600,1.1457,3945.4,3945.2,3.2078]
[1758890501796,1.1457,3945.4,3945.3,0.45591]
[1758890501998,1.63685,3946.2,3945.7,0.45586]
[1758890501999,1.60154,3946.0,3945.7,0.45586]
[1758890502193,0.4973,3946.2,3945.2,4.34762]
[1758890502194,1.1457,3945.9,3945.8,0.45586]
[1758890502407,1.4517,3945.9,3945.8,0.45586]
[1758890502903,1.4517,3945.9,3945.2,4.34762]
[1758890502904,1.4517,3945.9,3945.2,3.2078]
[1758890503307,1.1457,3945.7,3945.4,0.4559]
[1758890503608,1.1457,3945.5,3945.4,0.4559]
[1758890503905,0.45592,3945.3,3945.2,3.66373]
[1758890504098,1.6016,3945.4,3945.3,0.45592]
[1758890504295,0.45592,3945.3,3945.2,3.2078]
[1758890504500,1.1457,3945.2,3944.8,3.2078]
[1758890504702,0.08893579,3945.1,3945.0,0.45595]
[1758890505010,0.45596,3944.9,3944.8,3.2078]
[1758890505202,1.69059579,3944.9,3944.8,3.2078]
[1758890505402,1.23463579,3944.9,3944.8,3.66377]
[1758890505603,0.08893579,3944.9,3944.3,3.2078]
[1758890505804,1.1457,3944.6,3944.5,0.45601]
[1758890506009,0.08893579,3944.6,3944.3,3.2078]
[1758890506307,0.39493579,3944.5,3944.4,0.45602]
[1758890506512,0.45602,3944.4,3944.3,3.2078]
[1758890506713,1.23463579,3944.4,3944.3,3.66383]
[1758890507009,1.23463579,3944.4,3944.3,3.2078]
[1758890507211,1.23463579,3944.4,3944.3,3.66383]
[1758890507715,1.23463579,3944.4,3944.3,0.45603]
[1758890507909,1.23463579,3944.4,3943.8,3.2078]
[1758890508108,1.23463579,3944.4,3942.7,40.8]
[1758890508109,0.45608,3943.9,3943.3,3.2078]
[1758890508405,0.08893579,3943.8,3943.7,4.446]
[1758890508605,0.08909662,3944.2,3944.1,0.45605]
[1758890508805,1.2347974,3944.2,3944.1,0.45605]
[1758890509405,4.4425974,3944.2,3943.3,3.2078]
[1758890509606,1.1457,3944.0,3943.7,0.45609]
[1758890509807,1.1457,3943.8,3943.7,0.45609]
[1758890510007,0.0890974,3943.8,3943.7,4.90209]
[1758890510310,0.45599,3944.7,3944.0,0.45607]
[1758890510311,0.306,3944.1,3944.0,0.45607]
[1758890510507,4.74855836,3944.9,3943.7,4.446]
[1758890510715,1.60169,3944.7,3944.4,0.45601]
[1758890510905,1.1457,3944.4,3943.5,1.14029]
[1758890511111,5.89425836,3944.2,3944.1,0.45605]
[1758890511310,5.98329647,3944.2,3944.1,0.45605]
[1758890511611,0.45605,3944.1,3944.0,0.45607]
[1758890511912,1.23473811,3944.1,3944.0,0.45607]
[1758890512214,1.1457,3944.0,3943.7,0.4561]
[1758890512513,1.1457,3944.0,3943.3,3.2078]
[1758890512514,0.39503811,3943.9,3943.3,3.2078]
[1758890512715,1.1457,3943.7,3943.3,3.2078]
[1758890512909,1.1457,3943.5,3943.4,0.45613]
[1758890513314,1.23465054,3943.5,3943.4,0.45613]
[1758890513812,0.45613,3943.4,3942.6,1.14056]
[1758890514012,0.45617,3943.1,3943.0,0.45618]
[1758890514212,1.69082255,3943.1,3943.0,0.45618]
[1758890514414,1.23465255,3943.1,3943.0,0.45618]
[1758890514807,0.08895255,3943.1,3943.0,1.69438]
[1758890515007,3.2078,3943.6,3943.3,1.2382]
[1758890515208,0.0253,3943.7,3943.6,1.69431]
[1758890515509,0.0253,3943.7,3943.3,0.45615]
[1758890515510,0.45612,3943.6,3943.3,0.45615]
[1758890515814,0.45613,3943.4,3943.2,0.45616]
[1758890516013,0.08886316,3943.3,3943.2,0.45616]
[1758890516416,8.04522152,3943.3,3942.4,1.2382]
[1758890516609,0.45619,3942.9,3942.7,0.45621]
[1758890516809,1.1457,3942.7,3942.5,0.45624]
[1758890517117,1.1457,3942.7,3942.6,0.45623]
[1758890517312,0.4562,3942.8,3942.3,3.2078]
[1758890517516,1.60195,3942.4,3942.3,3.2078]
[1758890517710,0.45621,3942.8,3942.5,0.45623]
[1758890517916,1.1457,3942.6,3942.3,3.66406]
[1758890518119,0.08890377,3942.5,3942.3,3.66406]
[1758890518414,1.1457,3942.6,3942.4,0.45625]
[1758890518618,0.08892975,3942.5,3942.4,0.45625]
[1758890518810,1.23462975,3942.5,3942.4,0.45625]
[1758890519008,1.1457,3942.4,3942.3,3.2078]
[1758890519810,1.2346258,3942.4,3942.3,3.2078]
[1758890520404,1.2346258,3942.4,3941.8,3.2078]
[1758890520610,1.60201,3941.9,3941.8,3.2078]
[1758890520919,1.9969358,3941.9,3941.8,3.2078]
[1758890521620,0.45641,3941.1,3940.9,4.446]
[1758890521821,1.4517,3941.2,3941.0,0.45641]
[1758890522121,0.306,3941.2,3941.1,1.2382]
[1758890522420,1.1457,3941.0,3940.9,3.2078]
[1758890523012,9.68821877,3941.0,3940.2,0.4565]
[1758890523214,1.1457,3940.8,3940.2,0.4565]
[1758890523409,0.85131041,3940.7,3940.5,0.45647]
[1758890523609,0.45645,3940.7,3940.5,0.45647]
[1758890523919,1.60206,3941.5,3940.8,1.2382]
[1758890524111,1.60206,3941.5,3940.7,1.14113]
[1758890524112,0.306,3941.2,3941.1,0.4564]
[1758890524312,1.1457,3941.5,3941.4,0.45636]
[1758890524513,1.54044306,3941.5,3941.4,0.45636]
[1758890524718,0.08874306,3941.5,3941.4,0.45636]
[1758890524915,0.08874306,3941.5,3940.9,4.34884]
[1758890524916,3.66412,3941.8,3941.6,0.45634]
[1758890525216,3.66412,3941.8,3940.9,3.5138]
[1758890525217,1.1457,3941.4,3940.9,3.5138]
[1758890525417,1.1477,3941.3,3940.9,3.2078]
[1758890525619,3.2078,3941.8,3940.9,3.2078]
[1758890525620,1.1477,3941.8,3941.7,0.45633]
[1758890525812,1.23644118,3941.8,3941.7,0.45633]
[1758890526316,0.306,3941.8,3941.3,3.66417]
[1758890526521,1.1477,3941.6,3941.5,0.45635]
[1758890526920,1.1477,3942.3,3942.1,0.45628]
[1758890527216,1.4537,3942.4,3942.2,0.45627]
[1758890527416,1.1477,3942.9,3942.1,1.2336]
[1758890527619,0.306,3942.8,3942.1,1.2336]
[1758890527827,1.6039,3942.9,3942.1,1.2336]
[1758890528118,1.2455,3942.7,3942.6,3.2078]
[1758890528314,0.306,3942.8,3942.6,3.2078]
[1758890528512,0.45624,3942.5,3942.1,1.2336]
[1758890528713,4.74855836,3942.2,3941.9,0.45631]
[1758890528918,4.74855836,3942.2,3941.8,3.2078]
[1758890528919,1.2455,3942.1,3941.8,3.2078]
[1758890529225,1.2455,3942.6,3942.3,0.45626]
[1758890529414,0.45625,3942.4,3942.0,0.45629]
[1758890529616,1.2455,3942.1,3941.8,3.2078]
[1758890529808,1.2455,3942.1,3941.9,0.45631]
[1758890530013,0.305,3942.2,3942.1,0.45628]
[1758890530213,5.99405836,3942.7,3942.5,0.45624]
[1758890530214,1.2455,3942.7,3942.5,0.45624]
[1758890530414,4.74855836,3943.2,3943.0,0.45618]
[1758890530415,1.2455,3943.2,3943.0,0.45618]
[1758890530618,0.3938346,3943.1,3942.4,1.1753]
[1758890530819,1.70174,3942.5,3942.3,3.66406]
[1758890531009,1.70174,3942.5,3942.3,3.2078]
[1758890531010,1.2455,3942.4,3942.3,3.2078]
[1758890531423,1.2455,3942.4,3941.7,1.44581]
[1758890531424,1.2455,3942.4,3942.1,0.45628]
[1758890531721,0.45626,3942.3,3942.1,0.45628]
[1758890532026,1.2455,3942.2,3942.1,0.45628]
[1758890532213,1.2455,3942.2,3942.0,3.2078]
[1758890532214,1.2455,3942.1,3942.0,3.2078]
[1758890532419,5.99405836,3942.1,3942.0,3.2078]
[1758890532619,6.08298912,3942.1,3942.0,3.2078]
[1758890533023,11.08298912,3942.1,3941.3,3.2078]
[1758890533322,1.2455,3941.4,3940.9,3.2078]
[1758890533514,1.2455,3941.8,3941.0,1.14103]
[1758890533715,0.08898245,3941.7,3941.6,0.45634]
[1758890534022,0.45636,3941.5,3940.9,4.6881]
[1758890534318,0.305,3941.4,3941.2,0.45639]
[1758890534824,1.2455,3941.0,3940.9,3.2078]
[1758890535218,6.29905836,3941.0,3940.9,3.2078]
[1758890535627,6.79525836,3941.0,3940.9,3.2078]
[1758890535922,6.79525836,3941.0,3940.5,0.45647]
[1758890536122,0.45645,3940.7,3940.5,0.45647]
[1758890536317,1.2455,3940.5,3940.4,3.2078]
[1758890536721,5.24475836,3941.0,3940.8,0.45643]
[1758890537023,5.24475836,3941.0,3940.4,3.2078]
[1758890537024,1.2455,3940.8,3940.7,0.45644]
[1758890537420,1.2455,3941.2,3940.4,5.52429]
[1758890537721,0.305,3941.3,3940.8,3.2078]
[1758890537922,0.305,3941.3,3941.2,0.45639]
[1758890538128,0.3303,3941.3,3941.2,0.45639]
[1758890538620,1.2455,3941.2,3941.1,0.45639]
[1758890538818,1.70189,3941.2,3940.6,0.305]
[1758890539020,1.2455,3940.9,3940.8,0.45643]
[1758890539322,0.0253,3941.3,3940.4,4.3831]
[1758890539525,0.305,3941.2,3940.4,4.3831]
[1758890539819,0.0253,3941.3,3941.2,1.1753]
[1758890540026,0.3303,3941.3,3941.2,1.1753]
[1758890540421,0.0253,3941.3,3941.2,1.1753]
[1758890540723,3.2078,3942.0,3941.9,0.45631]
[1758890540926,3.2078,3942.0,3941.9,1.63161]
[1758890541424,3.2078,3942.0,3941.8,0.45632]
[1758890541614,4.4533,3942.0,3941.8,0.45632]
[1758890541813,1.2455,3941.9,3941.8,0.45632]
[1758890542428,1.2455,3941.9,3941.3,0.305]